fUSD/lending_fUSD_20241003
["ID","MTS","AMOUNT","RATE_DAILY","PERIOD"]
[339800851,1727988637861,-1083.88,0.00032876,120]
[339800852,1727988637873,-2144.37,0.00032876,120]
[339800853,1727988637885,-500.0,0.00032876,5]
[339800854,1727988637894,-500.0,0.00032876,7]
[339800855,1727988637903,-500.0,0.00032876,120]
[339800856,1727988637912,-500.0,0.00032876,120]
[339800857,1727988637921,-500.0,0.00032876,120]
[339800858,1727988637930,-360.341,0.00033096,34]
[339800859,1727988637939,-159.417,0.00033096,34]
[339800860,1727988637949,-628.98,0.0003315,120]
[339800861,1727988637960,-1082.68,0.0003315,120]
[339800862,1727988637971,-500.0,0.0003315,120]
[339800864,1727988637982,-500.0,0.0003315,2]
[339800866,1727988637991,-500.0,0.0003315,120]
[339800867,1727988637999,-500.0,0.0003315,5]
[339800869,1727988638008,-500.0,0.0003315,120]
[339800871,1727988638017,-785.42,0.0003315,120]
[339800873,1727988638027,-500.0,0.0003315,120]
[339800875,1727988638036,-500.0,0.0003315,2]
[339800877,1727988638046,-1292.49,0.0003315,7]
[339800879,1727988638056,-185.27894001,0.0003315,120]
[339800880,1727988638065,-500.0,0.0003315,120]
[339800882,1727988638075,-500.0,0.0003315,120]
[339800885,1727988638087,-504.70346978,0.0003315,120]
[339800887,1727988638096,-500.0,0.0003315,120]
[339800889,1727988638105,-566.14,0.0003315,120]
[339800890,1727988638114,-500.0,0.0003315,120]
[339800892,1727988638123,-500.0,0.0003315,120]
[339800894,1727988638134,-500.0,0.0003315,120]
[339800896,1727988638143,-500.0,0.0003315,120]
[339800898,1727988638152,-500.0,0.0003315,120]
[339800900,1727988638160,-1003.38,0.0003315,120]
[339800902,1727988638169,-1540.84,0.0003315,120]
[339800904,1727988638179,-370.1791201,0.0003315,120]
[339800905,1727988638188,-500.0,0.0003315,120]
[339800907,1727988638198,-1083.88,0.0003315,120]
[339800909,1727988638207,-2144.37,0.0003315,120]
[339800910,1727988638216,-500.0,0.0003315,5]
[339800911,1727988638225,-500.0,0.0003315,7]
[339800912,1727988638234,-500.0,0.0003315,120]
[339800913,1727988638243,-500.0,0.0003315,120]
[339800914,1727988638252,-500.0,0.0003315,120]
[339800915,1727988638262,-500.0,0.00033173,5]
[339800916,1727988638273,-500.0,0.00033173,5]
[339800917,1727988638282,-509.5205,0.00033324,2]
[339800918,1727988638293,-1892.236207,0.0003338,13]
[339800919,1727988638303,-1000.0,0.000334,13]
[339800920,1727988638312,-1000.0,0.0003342,13]
[339800921,1727988638324,-1082.68,0.00033424,120]
[339800922,1727988638335,-500.0,0.00033424,120]
[339800923,1727988638345,-500.0,0.00033424,2]
[339800924,1727988638355,-500.0,0.00033424,120]
[339800925,1727988638364,-500.0,0.00033424,5]
[339800926,1727988638373,-500.0,0.00033424,120]
[339800927,1727988638384,-785.42,0.00033424,120]
[339800928,1727988638393,-500.0,0.00033424,120]
[339800929,1727988638403,-585.64793538,0.00033424,2]
[339800930,1727988638412,-1292.49,0.00033424,7]
[339800931,1727988638424,-500.0,0.00033424,120]
[339800932,1727988638433,-500.0,0.00033424,120]
[339800933,1727988638442,-500.0,0.00033424,120]
[339800934,1727988638451,-566.14,0.00033424,120]
[339800935,1727988638460,-500.0,0.00033424,120]
[339800936,1727988638469,-500.0,0.00033424,120]
[339800937,1727988638478,-500.0,0.00033424,120]
[339800938,1727988638488,-500.0,0.00033424,120]
[339800939,1727988638499,-500.0,0.00033424,120]
[339800940,1727988638508,-1003.38,0.00033424,120]
[339800941,1727988638517,-1540.84,0.00033424,120]
[339800942,1727988638527,-500.0,0.00033424,120]
[339800943,1727988638535,-1083.88,0.00033424,120]
[339800944,1727988638546,-2144.37,0.00033424,120]
[339800945,1727988638555,-500.0,0.00033424,5]
[339800946,1727988638564,-500.0,0.00033424,7]
[339800947,1727988638575,-500.0,0.00033424,120]
[339800948,1727988638585,-500.0,0.00033424,120]
[339800949,1727988638594,-367.26,0.00033424,120]
[339800950,1727988638603,-1000.0,0.0003344,13]
[339800951,1727988638612,-1000.0,0.0003346,13]
[339800952,1727988638621,-1000.0,0.0003348,13]
[339800953,1727988638631,-1000.0,0.000335,13]
[339800954,1727988638640,-1430.41,0.00033518,2]
[339800955,1727988638649,-1000.0,0.0003352,13]
[339800956,1727988638659,-151.04,0.00033524,5]
[339800957,1727988638668,-1000.0,0.0003354,13]
[339800958,1727988638677,-1000.0,0.0003356,13]
[339800959,1727988638686,-1000.0,0.0003358,13]
[339800960,1727988638695,-235.0,0.000336,22]
[339800961,1727988638706,-1000.0,0.000336,13]
[339800962,1727988638716,-1082.68,0.00033698,120]
[339800963,1727988638726,-500.0,0.00033698,120]
[339800964,1727988638736,-577.79388947,0.00033698,2]
[339800965,1727988638746,-500.0,0.00033698,120]
[339800966,1727988638758,-500.0,0.00033698,5]
[339800967,1727988638768,-500.0,0.00033698,120]
[339800968,1727988638779,-785.42,0.00033698,120]
[339800969,1727988638788,-500.0,0.00033698,120]
[339800970,1727988638798,-1292.49,0.00033698,7]
[339800971,1727988638981,-500.0,0.00033698,120]
[339800972,1727988638991,-500.0,0.00033698,120]
[339800973,1727988639000,-500.0,0.00033698,120]
[339800974,1727988639009,-566.14,0.00033698,120]
[339800975,1727988639019,-500.0,0.00033698,120]
[339800976,1727988639028,-500.0,0.00033698,120]
[339800977,1727988639038,-500.0,0.00033698,120]
[339800978,1727988639047,-500.0,0.00033698,120]
[339800979,1727988639056,-500.0,0.00033698,120]
[339800980,1727988639065,-1003.38,0.00033698,120]
[339800981,1727988639075,-1540.84,0.00033698,120]
[339800982,1727988639085,-500.0,0.00033698,120]
[339800983,1727988639094,-1083.88,0.00033698,120]
[339800984,1727988639103,-2144.37,0.00033698,120]
[339800985,1727988639113,-500.0,0.00033698,5]
[339800986,1727988639122,-500.0,0.00033698,7]
[339800987,1727988639131,-500.0,0.00033698,120]
[339800988,1727988639141,-500.0,0.00033698,120]
[339800989,1727988639150,-500.0,0.00033757,120]
[339800990,1727988639160,-1451.1123,0.00033872,2]
[339800991,1727988639170,-1082.68,0.00033972,120]
[339800992,1727988639179,-500.0,0.00033972,120]
[339800993,1727988639188,-500.0,0.00033972,120]
[339800994,1727988639198,-500.0,0.00033972,5]
[339800995,1727988639207,-500.0,0.00033972,120]
[339800996,1727988639216,-785.42,0.00033972,120]
[339800997,1727988639225,-435.21324049,0.00033972,120]
[339800998,1727988639235,-1292.49,0.00033972,7]
[339800999,1727988639245,-500.0,0.00033972,120]
[339801000,1727988639254,-500.0,0.00033972,120]
[339801001,1727988639264,-500.0,0.00033972,120]
[339801002,1727988639273,-566.14,0.00033972,120]
[339801003,1727988639282,-500.0,0.00033972,120]
[339801004,1727988639292,-186.95079634,0.00033972,120]
[339801005,1727988639302,-500.0,0.00033972,120]
[339801006,1727988639311,-555.21562987,0.00033972,120]
[339801007,1727988639321,-1003.38,0.00033972,120]
[339801008,1727988639331,-1540.84,0.00033972,120]
[339801009,1727988639340,-500.0,0.00033972,120]
[339801010,1727988639349,-1083.88,0.00033972,120]
[339801012,1727988639359,-2144.37,0.00033972,120]
[339801013,1727988639368,-500.0,0.00033972,5]
[339801014,1727988639378,-336.46763433,0.00033972,7]
[339801015,1727988639388,-500.0,0.00033972,120]
[339801016,1727988639397,-500.0,0.00033972,120]
[339801017,1727988639406,-1744.2032,0.00034046,2]
[339801018,1727988639416,-235.0,0.000341,23]
[339801019,1727988639431,-1169.76,0.00034145,120]
[339801020,1727988639441,-633.43,0.00034145,120]
[339801021,1727988639450,-500.0,0.00034145,120]
[339801022,1727988639459,-500.0,0.00034145,120]
[339801023,1727988639470,-200.0,0.00034145,7]
[339801024,1727988639479,-500.0,0.00034145,120]
[339801025,1727988639489,-618.53,0.00034145,120]
[339801026,1727988639499,-500.0,0.00034145,120]
[339801027,1727988639509,-361.78259525,0.00034145,120]
[339801028,1727988639519,-500.0,0.00034145,120]
[339801029,1727988639529,-550.0,0.00034145,2]
[339801030,1727988639539,-870.55,0.00034145,120]
[339801031,1727988639549,-53570.7555,0.00034146,2]
[339801032,1727988639558,-500.0,0.00034173,5]
[339801033,1727988639567,-2850.74563405,0.000342,2]
[339801034,1727988639576,-855.91,0.00034245,120]
[339801035,1727988639585,-500.0,0.00034245,120]
[339801036,1727988639594,-594.85,0.00034245,120]
[339801037,1727988639604,-500.0,0.00034245,120]
[339801038,1727988639614,-500.0,0.00034245,120]
[339801039,1727988639623,-208.0,0.00034246,2]
[339801040,1727988639635,-1082.68,0.00034246,120]
[339801041,1727988639645,-500.0,0.00034246,120]
[339801042,1727988639654,-500.0,0.00034246,120]
[339801043,1727988639663,-500.0,0.00034246,120]
[339801044,1727988639673,-500.0,0.00034246,5]
[339801045,1727988639682,-785.42,0.00034246,120]
[339801046,1727988639692,-1292.49,0.00034246,7]
[339801047,1727988639702,-500.0,0.00034246,120]
[339801048,1727988639711,-500.0,0.00034246,120]
[339801049,1727988639720,-500.0,0.00034246,120]
[339801050,1727988639730,-566.14,0.00034246,120]
[339801051,1727988639739,-500.0,0.00034246,120]
[339801052,1727988639748,-500.0,0.00034246,120]
[339801053,1727988639758,-1003.38,0.00034246,120]
[339801054,1727988639767,-1540.84,0.00034246,120]
[339801055,1727988639777,-500.0,0.00034246,120]
[339801056,1727988639786,-1083.88,0.00034246,120]
[339801057,1727988639795,-2144.37,0.00034246,120]
[339801058,1727988639804,-500.0,0.00034246,5]
[339801060,1727988639814,-181.64296688,0.00034246,120]
[339801061,1727988639824,-500.0,0.00034246,120]
[339801062,1727988639833,-1169.76,0.00034419,120]
[339801063,1727988639842,-633.43,0.00034419,120]
[339801064,1727988639851,-500.0,0.00034419,120]
[339801065,1727988639860,-500.0,0.00034419,120]
[339801066,1727988639870,-200.0,0.00034419,7]
[339801067,1727988639881,-500.0,0.00034419,120]
[339801068,1727988639890,-618.53,0.00034419,120]
[339801069,1727988639899,-500.0,0.00034419,120]
[339801070,1727988639908,-500.0,0.00034419,120]
[339801071,1727988639918,-870.55,0.00034419,120]
[339801072,1727988639928,-2036.76,0.00034519,2]
[339801073,1727988639938,-500.0,0.00034519,120]
[339801074,1727988639947,-500.0,0.00034519,120]
[339801075,1727988639957,-500.0,0.00034519,120]
[339801076,1727988639966,-500.0,0.00034519,120]
[339801077,1727988639975,-855.91,0.00034519,120]
[339801078,1727988639985,-500.0,0.00034519,120]
[339801079,1727988639994,-594.85,0.00034519,120]
[339801080,1727988640003,-500.0,0.00034519,120]
[339801081,1727988640013,-500.0,0.00034519,120]
[339801082,1727988640022,-500.0,0.00034519,120]
[339801083,1727988640032,-500.0,0.00034519,120]
[339801084,1727988640042,-1082.68,0.0003452,120]
[339801085,1727988640051,-500.0,0.0003452,120]
[339801086,1727988640060,-500.0,0.0003452,120]
[339801087,1727988640070,-500.0,0.0003452,120]
[339801088,1727988640079,-500.0,0.0003452,5]
[339801089,1727988640087,-785.42,0.0003452,120]
[339801090,1727988640096,-1292.49,0.0003452,7]
[339801091,1727988640106,-500.0,0.0003452,120]
[339801092,1727988640115,-500.0,0.0003452,120]
[339801093,1727988640124,-500.0,0.0003452,120]
[339801094,1727988640139,-566.14,0.0003452,120]
[339801095,1727988640148,-500.0,0.0003452,120]
[339801096,1727988640157,-500.0,0.0003452,120]
[339801097,1727988640167,-1003.38,0.0003452,120]
[339801098,1727988640176,-1540.84,0.0003452,120]
[339801099,1727988640185,-500.0,0.0003452,120]
[339801100,1727988640195,-1083.88,0.0003452,120]
[339801101,1727988640204,-2144.37,0.0003452,120]
[339801102,1727988640213,-500.0,0.0003452,5]
[339801103,1727988640222,-500.0,0.0003452,120]
[339801104,1727988640232,-627.0,0.00034548,5]
[339801105,1727988640241,-150.0,0.00034548,10]
[339801106,1727988640251,-235.0,0.000346,23]
[339801107,1727988640260,-7625.29510831,0.00034684,5]
[339801108,1727988640269,-1169.76,0.00034693,120]
[339801109,1727988640278,-633.43,0.00034693,120]
[339801110,1727988640288,-500.0,0.00034693,120]
[339801111,1727988640297,-500.0,0.00034693,120]
[339801112,1727988640307,-200.0,0.00034693,7]
[339801113,1727988640316,-500.0,0.00034693,120]
[339801114,1727988640326,-618.53,0.00034693,120]
[339801115,1727988640335,-500.0,0.00034693,120]
[339801116,1727988640344,-500.0,0.00034693,120]
[339801117,1727988640354,-870.55,0.00034693,120]
[339801118,1727988640363,-2901.4902,0.00034694,2]
[339801119,1727988640372,-261.9592,0.00034694,2]
[339801120,1727988640384,-7625.29510831,0.00034784,5]
[339801121,1727988640395,-2036.76,0.00034793,2]
[339801122,1727988640404,-500.0,0.00034793,120]
[339801123,1727988640414,-500.0,0.00034793,120]
[339801124,1727988640425,-500.0,0.00034793,120]
[339801125,1727988640435,-500.0,0.00034793,120]
[339801126,1727988640444,-855.91,0.00034793,120]
[339801127,1727988640453,-500.0,0.00034793,120]
[339801128,1727988640463,-594.85,0.00034793,120]
[339801129,1727988640472,-500.0,0.00034793,120]
[339801130,1727988640482,-500.0,0.00034793,120]
[339801131,1727988640491,-500.0,0.00034793,120]
[339801132,1727988640500,-500.0,0.00034793,120]
[339801133,1727988640510,-1082.68,0.00034794,120]
[339801134,1727988640520,-500.0,0.00034794,120]
[339801135,1727988640530,-500.0,0.00034794,120]
[339801136,1727988640540,-500.0,0.00034794,5]
[339801137,1727988640549,-500.0,0.00034794,120]
[339801138,1727988640559,-785.42,0.00034794,120]
[339801139,1727988640568,-1292.49,0.00034794,7]
[339801140,1727988640577,-500.0,0.00034794,120]
[339801141,1727988640586,-339.35742486,0.00034794,120]
[339801142,1727988640596,-500.0,0.00034794,120]
[339801143,1727988640605,-566.14,0.00034794,120]
[339801144,1727988640614,-500.0,0.00034794,120]
[339801145,1727988640623,-500.0,0.00034794,120]
[339801146,1727988640635,-1003.38,0.00034794,120]
[339801147,1727988640644,-1540.84,0.00034794,120]
[339801148,1727988640653,-500.0,0.00034794,120]
[339801149,1727988640663,-1083.88,0.00034794,120]
[339801150,1727988640671,-2144.37,0.00034794,120]
[339801151,1727988640680,-500.0,0.00034794,5]
[339801152,1727988640689,-536.82590971,0.00034794,120]
[339801153,1727988640699,-1364.9288,0.00034858,2]
[339801154,1727988640708,-152.81,0.00034894,5]
[339801155,1727988640717,-1297.412068,0.0003494,14]
[339801156,1727988640726,-7625.29510831,0.00034957,5]
[339801157,1727988640735,-1000.0,0.0003496,14]
[339801158,1727988640744,-1169.76,0.00034967,120]
[339801159,1727988640753,-633.43,0.00034967,120]
[339801160,1727988640761,-500.0,0.00034967,120]
[339801161,1727988640770,-500.0,0.00034967,120]
[339801162,1727988640779,-200.0,0.00034967,7]
[339801163,1727988640788,-500.0,0.00034967,120]
[339801164,1727988640797,-618.53,0.00034967,120]
[339801165,1727988640806,-500.0,0.00034967,120]
[339801166,1727988640815,-500.0,0.00034967,120]
[339801167,1727988640824,-870.55,0.00034967,120]
[339801168,1727988640833,-182.4324,0.00034968,3]
[339801169,1727988640842,-1000.0,0.0003498,14]
[339801170,1727988640851,-1000.0,0.00035,14]
[339801171,1727988640860,-15250.5902166,0.00035058,5]
[339801172,1727988640869,-2036.76,0.00035067,2]
[339801173,1727988640878,-500.0,0.00035067,120]
[339801174,1727988640889,-500.0,0.00035067,120]
[339801175,1727988640898,-500.0,0.00035067,120]
[339801176,1727988640907,-1033.9,0.00035067,120]
[339801177,1727988640916,-500.0,0.00035067,120]
[339801178,1727988640925,-500.0,0.00035067,120]
[339801179,1727988640934,-855.91,0.00035067,120]
[339801180,1727988640943,-500.0,0.00035067,120]
[339801181,1727988640952,-500.0,0.00035067,120]
[339801182,1727988640961,-1115.27,0.00035067,120]
[339801183,1727988640971,-594.85,0.00035067,120]
[339801184,1727988640979,-500.0,0.00035067,120]
[339801185,1727988640988,-2071.89,0.00035067,7]
[339801186,1727988640997,-719.32,0.00035067,120]
[339801187,1727988641006,-500.0,0.00035067,120]
[339801188,1727988641015,-500.0,0.00035067,120]
[339801189,1727988641024,-500.0,0.00035067,120]
[339801190,1727988641033,-500.0,0.00035067,120]
[339801191,1727988641044,-1082.68,0.00035068,120]
[339801192,1727988641054,-500.0,0.00035068,120]
[339801193,1727988641063,-500.0,0.00035068,120]
[339801194,1727988641073,-500.0,0.00035068,5]
[339801195,1727988641083,-500.0,0.00035068,120]
[339801196,1727988641092,-785.42,0.00035068,120]
[339801197,1727988641101,-1292.49,0.00035068,7]
[339801198,1727988641111,-500.0,0.00035068,120]
[339801199,1727988641120,-500.0,0.00035068,120]
[339801200,1727988641132,-566.14,0.00035068,120]
[339801201,1727988641141,-500.0,0.00035068,120]
[339801202,1727988641150,-500.0,0.00035068,120]
[339801203,1727988641159,-1003.38,0.00035068,120]
[339801204,1727988641168,-1540.84,0.00035068,120]
[339801205,1727988641177,-500.0,0.00035068,120]
[339801206,1727988641186,-1083.88,0.00035068,120]
[339801207,1727988641195,-2144.37,0.00035068,120]
[339801208,1727988641204,-500.0,0.00035068,5]
[339801209,1727988641213,-235.0,0.000351,24]
[339801210,1727988641223,-373.91,0.000352,30]
[339801211,1727988641231,-1169.76,0.00035241,120]
[339801212,1727988641240,-633.43,0.00035241,120]
[339801213,1727988641249,-500.0,0.00035241,120]
[339801214,1727988641258,-500.0,0.00035241,120]
[339801215,1727988641267,-200.0,0.00035241,7]
[339801216,1727988641276,-500.0,0.00035241,120]
[339801217,1727988641285,-618.53,0.00035241,120]
[339801218,1727988641294,-500.0,0.00035241,120]
[339801219,1727988641303,-500.0,0.00035241,120]
[339801220,1727988641312,-870.55,0.00035241,120]
[339801221,1727988641321,-1000.0,0.0003531,2]
[339801222,1727988641331,-7625.29510831,0.00035331,6]
[339801223,1727988641341,-7625.29510831,0.00035332,6]
[339801224,1727988641350,-2036.76,0.00035341,2]
[339801225,1727988641359,-500.0,0.00035341,120]
[339801226,1727988641368,-500.0,0.00035341,120]
[339801227,1727988641377,-500.0,0.00035341,120]
[339801228,1727988641391,-1033.9,0.00035341,120]
[339801229,1727988641400,-319.10812374,0.00035341,120]
[339801230,1727988641409,-500.0,0.00035341,120]
[339801231,1727988641418,-855.91,0.00035341,120]
[339801232,1727988641431,-500.0,0.00035341,120]
[339801233,1727988641441,-500.0,0.00035341,120]
[339801234,1727988641450,-1115.27,0.00035341,120]
[339801235,1727988641459,-594.85,0.00035341,120]
[339801236,1727988641468,-500.0,0.00035341,120]
[339801237,1727988641478,-2071.89,0.00035341,7]
[339801238,1727988641487,-719.32,0.00035341,120]
[339801239,1727988641497,-500.0,0.00035341,120]
[339801240,1727988641507,-500.0,0.00035341,120]
[339801241,1727988641516,-500.0,0.00035341,120]
[339801242,1727988641525,-500.0,0.00035341,120]
[339801243,1727988641534,-1082.68,0.00035342,120]
[339801244,1727988641543,-500.0,0.00035342,120]
[339801245,1727988641552,-500.0,0.00035342,120]
[339801246,1727988641561,-500.0,0.00035342,5]
[339801247,1727988641571,-500.0,0.00035342,120]
[339801248,1727988641580,-785.42,0.00035342,120]
[339801249,1727988641589,-1292.49,0.00035342,7]
[339801250,1727988641599,-500.0,0.00035342,120]
[339801251,1727988641607,-500.0,0.00035342,120]
[339801252,1727988641617,-566.14,0.00035342,120]
[339801253,1727988641626,-500.0,0.00035342,120]
[339801254,1727988641636,-500.0,0.00035342,120]
[339801255,1727988641646,-1003.38,0.00035342,120]
[339801256,1727988641655,-1540.84,0.00035342,120]
[339801257,1727988641664,-500.0,0.00035342,120]
[339801258,1727988641673,-1083.88,0.00035342,120]
[339801259,1727988641682,-2144.37,0.00035342,120]
[339801260,1727988641691,-500.0,0.00035342,5]
[339801261,1727988641700,-500.0,0.00035458,120]
[339801262,1727988641709,-1169.76,0.00035515,120]
[339801263,1727988641718,-633.43,0.00035515,120]
[339801264,1727988641727,-500.0,0.00035515,120]
[339801265,1727988641737,-500.0,0.00035515,120]
[339801266,1727988641746,-200.0,0.00035515,7]
[339801267,1727988641754,-500.0,0.00035515,120]
[339801268,1727988641763,-618.53,0.00035515,120]
[339801269,1727988641772,-500.0,0.00035515,120]
[339801270,1727988641781,-500.0,0.00035515,120]
[339801271,1727988641790,-870.55,0.00035515,120]
[339801272,1727988641799,-235.0,0.000356,24]
[339801273,1727988641808,-7625.29510831,0.00035605,6]
[339801274,1727988641817,-7625.29510831,0.00035606,6]
[339801275,1727988641827,-2036.76,0.00035615,2]
[339801276,1727988641835,-500.0,0.00035615,120]
[339801277,1727988641845,-500.0,0.00035615,120]
[339801278,1727988641854,-500.0,0.00035615,120]
[339801279,1727988641863,-1033.9,0.00035615,120]
[339801280,1727988641871,-500.0,0.00035615,120]
[339801281,1727988641882,-855.91,0.00035615,120]
[339801282,1727988641890,-500.0,0.00035615,120]
[339801283,1727988641899,-500.0,0.00035615,120]
[339801284,1727988641908,-1115.27,0.00035615,120]
[339801285,1727988641918,-594.85,0.00035615,120]
[339801286,1727988641927,-500.0,0.00035615,120]
[339801287,1727988641936,-2071.89,0.00035615,7]
[339801288,1727988641945,-719.32,0.00035615,120]
[339801289,1727988641954,-500.0,0.00035615,120]
[339801290,1727988641963,-505.6840135,0.00035615,120]
[339801291,1727988641972,-500.0,0.00035615,120]
[339801292,1727988641982,-500.0,0.00035615,120]
[339801293,1727988641991,-1082.68,0.00035616,120]
[339801294,1727988642000,-500.0,0.00035616,120]
[339801295,1727988642010,-500.0,0.00035616,120]
[339801296,1727988642019,-500.0,0.00035616,5]
[339801297,1727988642028,-500.0,0.00035616,120]
[339801298,1727988642037,-785.42,0.00035616,120]
[339801299,1727988642046,-1292.49,0.00035616,7]
[339801300,1727988642055,-500.0,0.00035616,120]
[339801301,1727988642065,-500.0,0.00035616,120]
[339801302,1727988642073,-566.14,0.00035616,120]
[339801303,1727988642083,-187.43433028,0.00035616,120]
[339801304,1727988642091,-500.0,0.00035616,120]
[339801305,1727988642100,-1003.38,0.00035616,120]
[339801306,1727988642110,-1540.84,0.00035616,120]
[339801307,1727988642119,-236.68652301,0.00035616,120]
[339801308,1727988642128,-1083.88,0.00035616,120]
[339801309,1727988642139,-2144.37,0.00035616,120]
[339801310,1727988642148,-500.0,0.00035616,5]
[339801311,1727988642158,-7625.29510831,0.00035779,6]
[339801312,1727988642167,-1430.41,0.00035782,2]
[339801313,1727988642176,-1169.76,0.00035789,120]
[339801314,1727988642185,-633.43,0.00035789,120]
[339801315,1727988642194,-540.15568343,0.00035789,120]
[339801316,1727988642203,-500.0,0.00035789,120]
[339801317,1727988642212,-200.0,0.00035789,7]
[339801318,1727988642221,-500.0,0.00035789,120]
[339801319,1727988642230,-618.53,0.00035789,120]
[339801320,1727988642239,-500.0,0.00035789,120]
[339801321,1727988642248,-500.0,0.00035789,120]
[339801322,1727988642257,-870.55,0.00035789,120]
[339801323,1727988642267,-599.91,0.00035878,120]
[339801324,1727988642276,-1000.0,0.00035879,2]
[339801325,1727988642285,-15250.5902166,0.0003588,6]
[339801326,1727988642294,-2036.76,0.00035889,2]
[339801328,1727988642303,-500.0,0.00035889,120]
[339801329,1727988642312,-500.0,0.00035889,120]
[339801331,1727988642322,-500.0,0.00035889,120]
[339801332,1727988642333,-1033.9,0.00035889,120]
[339801333,1727988642343,-500.0,0.00035889,120]
[339801334,1727988642353,-855.91,0.00035889,120]
[339801335,1727988642362,-500.0,0.00035889,120]
[339801336,1727988642371,-500.0,0.00035889,120]
[339801337,1727988642381,-1115.27,0.00035889,120]
[339801338,1727988642390,-594.85,0.00035889,120]
[339801339,1727988642399,-500.0,0.00035889,120]
[339801340,1727988642409,-2071.89,0.00035889,7]
[339801341,1727988642418,-719.32,0.00035889,120]
[339801342,1727988642432,-500.0,0.00035889,120]
[339801343,1727988642441,-500.0,0.00035889,120]
[339801344,1727988642450,-500.0,0.00035889,120]
[339801345,1727988642460,-1082.68,0.0003589,120]
[339801346,1727988642470,-500.0,0.0003589,120]
[339801347,1727988642480,-500.0,0.0003589,120]
[339801348,1727988642489,-500.0,0.0003589,120]
[339801349,1727988642498,-500.0,0.0003589,5]
[339801350,1727988642508,-785.42,0.0003589,120]
[339801351,1727988642517,-1292.49,0.0003589,7]
[339801352,1727988642526,-500.0,0.0003589,120]
[339801353,1727988642535,-500.0,0.0003589,120]
[339801354,1727988642545,-566.14,0.0003589,120]
[339801355,1727988642554,-500.0,0.0003589,120]
[339801356,1727988642564,-1003.38,0.0003589,120]
[339801357,1727988642573,-1540.84,0.0003589,120]
[339801358,1727988642582,-1083.88,0.0003589,120]
[339801359,1727988642592,-2144.37,0.0003589,120]
[339801360,1727988642601,-500.0,0.0003589,5]
[339801361,1727988642610,-1169.76,0.00036063,120]
[339801362,1727988642620,-633.43,0.00036063,120]
[339801363,1727988642631,-434.29,0.00036063,120]
[339801364,1727988642641,-200.0,0.00036063,7]
[339801365,1727988642650,-500.0,0.00036063,120]
[339801366,1727988642659,-618.53,0.00036063,120]
[339801367,1727988642670,-391.50926327,0.00036063,120]
[339801368,1727988642680,-500.0,0.00036063,120]
[339801369,1727988642689,-870.55,0.00036063,120]
[339801370,1727988642698,-862.56,0.00036069,2]
[339801371,1727988642707,-754.34,0.00036069,2]
[339801372,1727988642716,-754.34,0.00036069,2]
[339801373,1727988642725,-754.34,0.00036069,2]
[339801374,1727988642734,-846.26,0.00036069,2]
[339801375,1727988642743,-753.41,0.00036069,2]
[339801376,1727988642753,-754.34,0.00036069,2]